bitfinex/quotes_SOLUSD_20220113
["timestamp","ask_amount","ask_price","bid_price","bid_amount"]
[1642084864111,2.539,157.59,157.45,1.26739738]
[1642084864313,112.5268,157.6,157.46,10.169]
[1642084864512,23.6331,157.64,157.46,26.88143993]
[1642084864711,23.6331,157.64,157.47,89.60821578]
[1642084864912,23.6331,157.64,157.51,5.7122]
[1642084865111,23.6331,157.64,157.52,7.63]
[1642084865312,22.3631,157.64,157.53,21.36457642]
[1642084865515,22.3631,157.64,157.53,35.24457642]
[1642084865712,22.3631,157.64,157.53,34.99457642]
[1642084865912,22.3631,157.64,157.54,1.26739738]
[1642084866214,2.8973937,157.65,157.55,10.167]
[1642084866612,2.8973937,157.65,157.55,17.68439738]
[1642084867012,2.8973937,157.65,157.59,5.7091]
[1642084867622,2.8973937,157.65,157.59,5.9591]
[1642084868315,2.8973937,157.65,157.59,5.7091]
[1642084868513,2.8973937,157.65,157.57,5.7101]
[1642084868713,2.8973937,157.65,157.56,10.417]
[1642084869314,1.51815231,157.64,157.56,10.167]
[1642084869516,1.51815231,157.64,157.56,7.63]
[1642084870316,1.76815231,157.64,157.56,7.63]
[1642084870517,0.25,157.64,157.56,7.63]
[1642084870917,2.537,157.64,157.56,7.63]
[1642084871116,2.8973937,157.65,157.56,7.63]
[1642084871518,2.8973937,157.65,157.56,7.88]
[1642084871717,2.8973937,157.65,157.56,13.5905]
[1642084872618,2.8973937,157.65,157.56,19.5905]
[1642084872819,2.8973937,157.65,157.56,13.5905]
[1642084874817,2.7973937,157.65,157.56,13.5905]
[1642084875724,3.0473937,157.65,157.56,13.5905]
[1642084875920,3.0473937,157.65,157.56,13.3405]
[1642084876123,5.5843937,157.65,157.56,7.63]
[1642084877221,5.5843937,157.65,157.52,7.63]
[1642084877422,5.3343937,157.65,157.52,7.63]
[1642084877623,5.3343937,157.65,157.52,13.63]
[1642084877822,14.8540937,157.65,157.53,5.7117]
[1642084878026,64.61,157.64,157.53,6.0]
[1642084878227,4.8343937,157.65,157.53,6.0]
[1642084878623,4.8343937,157.65,157.52,13.63]
[1642084878824,5.0843937,157.65,157.52,19.3421]
[1642084879426,5.0843937,157.65,157.52,19.5921]
[1642084880827,4.8343937,157.65,157.52,19.5921]
[1642084881228,20.3540937,157.65,157.52,13.3421]
[1642084881430,22.00408891,157.65,157.51,12.0918]
[1642084881626,22.00408891,157.65,157.51,2.537]
[1642084881826,29.63408891,157.65,157.51,2.537]
[1642084882028,29.88408891,157.65,157.47,7.63]
[1642084882227,23.6759,157.64,157.45,10.167]
[1642084882427,10.167,157.63,157.45,10.167]
[1642084882630,3.40035577,157.58,157.45,15.8815]
[1642084882826,70.54935577,157.58,157.45,15.8815]
[1642084883026,70.79935577,157.58,157.45,15.8815]
[1642084883227,76.79935577,157.58,157.45,13.3445]
[1642084883929,86.32325577,157.58,157.45,7.63]
[1642084884129,92.58225577,157.58,157.42,17.3547]
[1642084884331,64.61,157.56,157.43,2.539]
[1642084884530,2.539,157.55,157.39,10.169]
[1642084884730,50.5979,157.55,157.39,10.169]
[1642084884929,56.8479,157.55,157.39,10.169]
[1642084885331,64.61,157.54,157.39,10.169]
[1642084885531,2.54,157.53,157.39,10.169]
[1642084885730,85.97874396,157.52,157.39,10.169]
[1642084885935,95.50604396,157.52,157.4,5.7162]
[1642084886132,95.75604396,157.52,157.4,5.7162]
[1642084886433,95.75604396,157.52,157.39,10.169]
[1642084886635,2.54,157.51,157.39,2.539]
[1642084887133,9.5297,157.49,157.39,2.539]
[1642084887332,2.54,157.48,157.39,2.539]
[1642084887534,8.79,157.48,157.39,2.539]
[1642084887732,2.54,157.49,157.39,2.539]
[1642084887933,2.54,157.49,157.35,2.54]
[1642084888136,147.1932,157.49,157.35,2.54]
[1642084888334,147.1932,157.49,157.35,9.52549738]
[1642084888537,147.1932,157.49,157.35,30.17899297]
[1642084888735,147.1932,157.49,157.35,9.52549738]
[1642084888962,82.5832,157.49,157.35,17.15549738]
[1642084889160,80.0432,157.49,157.35,17.40549738]
[1642084889963,82.5832,157.49,157.35,17.15549738]
[1642084890960,82.8332,157.49,157.35,17.15549738]
[1642084891164,82.8332,157.49,157.35,15.8881]
[1642084891860,92.3639,157.49,157.35,10.17]
[1642084892061,7.63,157.48,157.33,1.26739738]
[1642084892261,2.541,157.47,157.33,1.26739738]
[1642084892461,8.791,157.47,157.33,1.26739738]
[1642084892660,7.63,157.46,157.3,1.26739738]
[1642084892861,64.61,157.44,157.27,10.171]
[1642084893061,64.61,157.42,157.29,5.7202]
[1642084893261,2.541,157.41,157.29,5.7202]
[1642084893463,8.791,157.41,157.29,5.7202]
[1642084893664,15.805,157.41,157.27,7.63]
[1642084893960,64.61,157.4,157.29,1.26739738]
[1642084894361,19.54663227,157.39,157.27,19.351]
[1642084894560,28.33763227,157.39,157.27,19.351]
[1642084894961,28.33763227,157.39,157.28,1.26739738]
[1642084895162,28.33763227,157.39,157.27,6.0]
[1642084895360,25.79663227,157.39,157.25,17.43839738]
[1642084895561,25.79663227,157.39,157.28,1.26739738]
[1642084895762,25.79663227,157.39,157.25,17.43839738]
[1642084895963,2.541,157.38,157.25,17.43839738]
[1642084896368,8.791,157.38,157.25,17.43839738]
[1642084896567,6.25,157.38,157.25,17.43839738]
[1642084896972,15.7873,157.38,157.25,17.43839738]
[1642084897169,15.7873,157.38,157.25,16.171]
[1642084897571,18.3283,157.38,157.25,13.63]
[1642084897972,8.791,157.38,157.25,13.63]
[1642084898171,2.791,157.38,157.26,1.26739738]
[1642084898372,0.25,157.38,157.27,2.541]
[1642084898573,28.33763227,157.39,157.26,11.43839738]
[1642084898775,28.33763227,157.39,157.27,22.9171654]
[1642084898972,25.79663227,157.39,157.28,2.541]
[1642084899278,19.79663227,157.39,157.29,5.7205]
[1642084899475,19.79663227,157.39,157.29,7.23789738]
[1642084899678,19.79663227,157.39,157.3,1.27024025]
[1642084899876,25.54663227,157.39,157.28,7.63]
[1642084900276,35.08343227,157.39,157.28,7.63]
[1642084901080,2.541,157.38,157.28,7.63]
[1642084901479,64.61,157.37,157.28,7.63]
[1642084901878,70.86,157.37,157.28,7.63]
[1642084902278,80.3982,157.37,157.28,7.63]
[1642084902479,80.3982,157.37,157.24,10.171]
[1642084902683,2.541,157.36,157.24,16.171]
[1642084902879,6.25,157.37,157.25,1.27024025]
[1642084903080,0.25,157.37,157.26,10.171]
[1642084903284,6.25,157.37,157.26,10.171]
[1642084903480,6.25,157.37,157.26,17.41274025]
[1642084903680,6.25,157.37,157.26,14.87174025]
[1642084903984,6.25,157.37,157.26,14.62174025]
[1642084904180,6.25,157.37,157.26,8.90024025]
[1642084904380,8.5473937,157.37,157.26,8.90024025]
[1642084904787,8.2973937,157.37,157.26,8.90024025]
[1642084905784,8.2973937,157.37,157.26,7.63]
[1642084905982,2.541,157.36,157.26,7.63]
[1642084906383,8.791,157.36,157.26,7.63]
[1642084907083,16.653,157.36,157.26,7.63]
[1642084907614,26.1916,157.36,157.23,9.719]
[1642084907787,26.1916,157.36,157.2,10.99524025]
[1642084907788,7.63,157.35,157.2,10.99524025]
[1642084907986,2.543,157.34,157.2,10.99524025]
[1642084908187,10.173,157.34,157.2,1.27024025]
[1642084908385,5.22246746,157.33,157.17,9.53794025]
[1642084908586,10.173,157.32,157.17,8.2677]
[1642084908787,19.7143,157.32,157.17,11.7247]
[1642084908986,25.7143,157.32,157.17,11.7247]
[1642084909188,25.7143,157.32,157.18,1.27024025]
[1642084909387,10.173,157.32,157.19,19.13532576]
[1642084909588,7.63,157.32,157.2,2.543]
[1642084909787,7.63,157.32,157.2,3.81324025]
[1642084909989,7.63,157.32,157.21,1.27024025]
[1642084910189,72.9832,157.35,157.21,1.27024025]
[1642084910388,72.9832,157.35,157.23,5.7226]
[1642084910587,78.9832,157.35,157.23,5.7226]
[1642084910988,22.29723701,157.34,157.23,5.7226]
[1642084911190,28.29723701,157.34,157.23,5.7226]
[1642084911390,28.29723701,157.34,157.21,6.99344025]
[1642084911588,28.54723701,157.34,157.21,5.9732]
[1642084912089,28.54723701,157.34,157.21,5.7232]
[1642084912490,28.29723701,157.34,157.21,5.7232]
[1642084912892,26.79723701,157.34,157.21,5.7232]
[1642084913090,26.79723701,157.34,157.22,1.27024025]
[1642084913291,26.79723701,157.34,157.22,5.723]
[1642084913491,91.40723701,157.34,157.22,5.723]
[1642084913691,91.40723701,157.34,157.2,2.543]
[1642084913895,2.543,157.33,157.2,2.543]
[1642084914092,6.0,157.33,157.2,2.543]
[1642084914295,6.0,157.33,157.21,5.7233]
[1642084914493,29.34023701,157.34,157.21,5.7233]
[1642084914893,29.34023701,157.34,157.21,5.9733]
[1642084915519,94.20023701,157.34,157.21,5.9733]
[1642084916120,29.59023701,157.34,157.21,5.9733]
[1642084917221,29.59023701,157.34,157.21,5.7233]
[1642084917424,72.24,157.33,157.2,2.543]
[1642084917621,2.543,157.32,157.2,2.543]
[1642084917822,64.61,157.31,157.2,2.543]
[1642084918120,2.543,157.3,157.2,2.543]
[1642084918322,70.86,157.31,157.17,2.543]
[1642084918521,5.01486272,157.3,157.17,8.543]
[1642084918722,5.01486272,157.3,157.17,6.0]
[1642084918922,11.26486272,157.3,157.17,6.0]
[1642084919121,11.26486272,157.3,157.17,11.7246]
[1642084919321,11.01486272,157.3,157.17,6.99484025]
[1642084919524,8.47186272,157.3,157.19,23.64032812]
[1642084919721,6.0,157.3,157.2,2.543]
[1642084919922,6.0,157.3,157.2,3.81324025]
[1642084920124,8.543,157.32,157.2,4.06324025]
[1642084920326,8.543,157.32,157.2,3.81324025]
[1642084920523,8.543,157.32,157.2,2.793]
[1642084920723,6.0,157.32,157.2,2.543]
[1642084920923,6.0,157.32,157.2,2.793]
[1642084921123,40.1404,157.33,157.2,2.793]
[1642084921323,40.1404,157.33,157.2,0.25]
[1642084921526,16.5,157.28,157.2,5.7236]
[1642084921926,22.5,157.28,157.2,5.7236]
[1642084922126,16.5,157.28,157.21,1.27024025]
[1642084922324,16.5,157.28,157.22,2.543]
[1642084922927,16.75,157.28,157.2,5.7235]
[1642084923124,22.5,157.28,157.2,5.7235]
[1642084923325,16.5,157.28,157.21,2.543]
[1642084923527,16.5,157.28,157.2,8.2665]
[1642084923932,16.75,157.28,157.2,5.7235]
[1642084924128,16.75,157.28,157.18,2.543]
[1642084924328,22.75,157.28,157.17,99.30743985]
[1642084924731,2.544,157.27,157.17,99.30743985]
[1642084924930,64.61,157.25,157.17,5.40743985]
[1642084925129,2.544,157.24,157.16,3.62919169]
[1642084925330,8.544,157.24,157.16,3.62919169]
[1642084925531,8.794,157.24,157.16,3.62919169]
[1642084925728,1.08484991,157.23,157.16,3.62919169]
[1642084926128,7.33484991,157.23,157.16,3.62919169]
[1642084926329,7.33484991,157.23,157.15,3.62963038]
[1642084927334,7.33484991,157.23,157.13,3.62963038]
[1642084927532,71.94484991,157.23,157.13,3.62963038]
[1642084928534,7.63,157.22,157.13,3.62963038]
[1642084928733,64.61,157.21,157.12,3.62963038]
[1642084929133,70.86,157.21,157.12,3.62963038]
[1642084929733,19.16810581,157.2,157.12,3.62963038]
[1642084929937,21.71310581,157.2,157.11,3.62963038]
[1642084930134,6.25,157.2,157.11,3.62963038]
[1642084930333,9.16,157.22,157.12,1.27024025]
[1642084930533,9.16,157.22,157.13,2.545]
[1642084930932,9.16,157.22,157.14,5.7259]
[1642084931134,9.16,157.22,157.11,3.66963038]
[1642084931135,9.16,157.22,157.11,6.21363038]
[1642084931335,9.16,157.22,157.11,9.84282207]
[1642084931740,2.545,157.21,157.11,7.29882207]
[1642084931934,9.16,157.2,157.11,7.29882207]
[1642084932335,15.41,157.2,157.12,3.62963038]
[1642084932539,4.04469361,157.19,157.12,3.62963038]
[1642084932736,13.20469361,157.19,157.12,3.62963038]
[1642084932943,19.45469361,157.19,157.12,3.62963038]
[1642084933139,19.45469361,157.19,157.11,3.66919169]
[1642084933140,15.16,157.19,157.11,0.04]
[1642084933341,9.16,157.23,157.12,3.81524025]
[1642084933542,86.6712,157.27,157.12,10.06524025]
[1642084933938,86.6712,157.27,157.12,4.06524025]
[1642084934141,16.47212453,157.26,157.15,5.7255]
[1642084934340,2.544,157.26,157.16,19.65482248]
[1642084934539,6.0,157.26,157.16,23.71906273]
[1642084934740,92.6712,157.27,157.16,23.71906273]
[1642084934942,92.9212,157.27,157.13,3.81424025]
[1642084935147,95.4652,157.27,157.13,3.81424025]
[1642084935345,95.4652,157.27,157.14,1.27024025]
[1642084935541,95.4652,157.27,157.16,5.725]
[1642084935743,95.4652,157.27,157.13,2.544]
[1642084935940,22.73574863,157.26,157.13,2.544]
[1642084936141,2.544,157.25,157.13,8.544]
[1642084936540,2.794,157.25,157.13,8.544]
[1642084937043,2.794,157.25,157.13,14.2701]
[1642084937342,2.794,157.25,157.13,11.7261]
[1642084937745,2.794,157.25,157.13,13.00053382]
[1642084938142,2.544,157.25,157.13,13.00053382]
[1642084938343,92.6712,157.27,157.14,2.544]
[1642084938541,56.0,157.26,157.17,0.9747]
[1642084938741,6.0,157.27,157.17,0.9747]
[1642084938943,6.0,157.27,157.18,3.81843382]
[1642084939242,18.43702055,157.3,157.18,30.76042283]
[1642084939443,18.43702055,157.3,157.19,1.27443382]
[1642084939644,18.43702055,157.3,157.18,29.73598901]
[1642084939843,18.68702055,157.3,157.18,29.73598901]
[1642084940045,18.68702055,157.3,157.18,31.01042283]
[1642084940247,18.68702055,157.3,157.22,5.7228]
[1642084940448,18.43702055,157.3,157.22,5.7228]
[1642084940644,125.2535,157.31,157.22,5.7228]
[1642084941044,125.2535,157.31,157.2,2.543]
[1642084941245,2.543,157.3,157.21,5.7235]
[1642084941647,2.543,157.3,157.21,25.3653475]
[1642084941848,2.543,157.3,157.21,25.6153475]
[1642084942045,2.543,157.3,157.21,31.6153475]
[1642084942247,2.543,157.3,157.22,9.16]
[1642084942446,2.543,157.3,157.26,5.721]
[1642084943047,17.31336135,157.36,157.26,5.971]
[1642084943248,11.703,157.38,157.26,5.721]
[1642084943546,11.703,157.38,157.26,11.721]
[1642084944148,32.56658997,157.38,157.26,11.721]
[1642084944447,30.02358997,157.38,157.28,5.721]
[1642084945047,30.02358997,157.38,157.26,6.0]
[1642084945248,2.541,157.37,157.26,6.0]
[1642084945453,8.541,157.37,157.25,5.7221]
[1642084945847,8.791,157.37,157.25,11.7221]
[1642084946048,64.61,157.36,157.25,11.9721]
[1642084946249,4.94650976,157.35,157.25,11.7221]
[1642084946449,5.19650976,157.35,157.25,11.9721]
[1642084946648,2.541,157.35,157.25,29.94403729]
[1642084946849,82.1854,157.37,157.26,2.541]
[1642084947048,76.1854,157.37,157.27,5.7212]
[1642084947349,78.7264,157.37,157.24,19.0702]
[1642084947548,76.1854,157.37,157.26,2.791]
[1642084947749,76.1854,157.37,157.26,0.25]
[1642084948149,76.1854,157.37,157.27,5.7212]
[1642084948350,16.9533411,157.36,157.27,5.7212]
[1642084948976,17.2033411,157.36,157.27,5.7212]
[1642084949976,17.2033411,157.36,157.25,3.541]
[1642084950176,29.2814411,157.36,157.25,1.0]
[1642084950379,67.8874411,157.36,157.25,1.0]
[1642084951380,64.61,157.35,157.25,1.0]
[1642084951580,74.3979,157.35,157.25,1.0]
[1642084951979,2.541,157.34,157.25,1.0]
[1642084952380,8.791,157.34,157.25,1.0]
[1642084952984,11.09455863,157.33,157.25,1.0]
[1642084953384,11.34455863,157.33,157.25,1.0]
[1642084953585,67.153,157.32,157.25,1.0]
[1642084954084,73.403,157.32,157.25,1.0]
[1642084954884,8.543,157.32,157.25,1.0]
[1642084955191,2.543,157.32,157.25,1.0]
[1642084955787,20.25455863,157.33,157.25,1.0]
[1642084956184,84.86455863,157.33,157.25,1.0]
[1642084956386,87.65755863,157.33,157.25,1.0]
[1642084956587,93.65755863,157.33,157.25,1.0]
[1642084957487,103.19655863,157.33,157.25,1.0]
[1642084957888,29.04755863,157.33,157.25,1.0]
[1642084958291,22.79755863,157.33,157.25,1.0]
[1642084958587,9.16,157.33,157.25,1.0]
[1642084959086,15.16,157.33,157.25,1.0]
[1642084960587,15.41,157.33,157.25,1.0]
[1642084960787,15.16,157.33,157.25,1.0]
[1642084961189,64.61,157.32,157.25,1.0]
[1642084962489,0.25,157.32,157.25,1.0]
[1642084962988,78.0,157.32,157.22,6.0]
[1642084963388,78.25,157.32,157.24,5.7222]
[1642084963590,78.25,157.32,157.2,29.42931826]
[1642084963787,78.25,157.32,157.21,1.81231826]
[1642084963788,13.80909418,157.31,157.21,1.81231826]
[1642084963988,11.26609418,157.31,157.21,10.35531826]
[1642084964589,11.26609418,157.31,157.22,5.723]
[1642084964790,11.26609418,157.31,157.21,1.81231826]
[1642084964991,64.61,157.3,157.21,1.81231826]
[1642084965191,11.703,157.29,157.21,1.81231826]
[1642084965391,18.07919925,157.28,157.21,1.81231826]
[1642084965591,64.61,157.26,157.21,1.81231826]
[1642084965792,26.87219925,157.28,157.19,1.81231826]
[1642084966591,64.61,157.27,157.19,1.81231826]
[1642084966993,6.25,157.27,157.18,1.81231826]
[1642084967195,6.0,157.27,157.18,1.81231826]
[1642084967393,18.07919925,157.28,157.18,1.81231826]
[1642084967894,82.68919925,157.28,157.18,1.81231826]
[1642084968095,82.68919925,157.28,157.18,7.81231826]
[1642084968096,18.07919925,157.28,157.18,7.81231826]
[1642084968297,23.5217,157.3,157.19,8.2683]
[1642084968495,29.7717,157.3,157.19,14.5183]
[1642084968698,64.61,157.29,157.19,14.5183]
[1642084968895,64.61,157.29,157.19,16.33061826]
[1642084969098,64.86,157.29,157.19,16.33061826]
[1642084969396,18.12950228,157.29,157.19,16.08061826]
[1642084969595,24.12950228,157.29,157.19,16.08061826]
[1642084969795,18.12950228,157.29,157.19,16.08061826]
[1642084969996,18.12950228,157.29,157.2,1.81231826]
[1642084970197,24.12950228,157.29,157.2,1.81231826]
[1642084970998,33.67100228,157.29,157.2,1.81231826]
[1642084971997,2.543,157.28,157.2,1.81231826]
[1642084972198,12.0851,157.28,157.18,1.81231826]
[1642084972398,18.0851,157.28,157.18,1.81231826]
[1642084973198,18.3351,157.28,157.16,4.35531826]
[1642084973398,64.61,157.23,157.16,4.35531826]
[1642084973598,20.42350228,157.22,157.16,4.35531826]
[1642084973999,26.67350228,157.22,157.16,4.35531826]
[1642084974401,26.67350228,157.22,157.16,2.543]
[1642084974599,24.12950228,157.22,157.14,1.81231826]
[1642084974902,23.87950228,157.22,157.14,1.81231826]
[1642084975299,6.0,157.22,157.14,1.81231826]
[1642084975501,64.61,157.23,157.13,1.81231826]
[1642084975901,2.544,157.22,157.13,1.81231826]
[1642084976100,8.544,157.22,157.13,1.81231826]
[1642084976304,82.82078435,157.21,157.13,1.81231826]
[1642084976501,88.82078435,157.21,157.13,1.81231826]
[1642084976702,89.07078435,157.21,157.13,1.81231826]
[1642084977302,2.545,157.2,157.13,1.81231826]
[1642084977502,2.545,157.2,157.11,1.81231826]
[1642084977503,8.795,157.2,157.11,1.81231826]
[1642084977703,64.61,157.19,157.11,1.81231826]
[1642084977902,11.13450908,157.16,157.11,1.81231826]
[1642084978102,64.61,157.15,157.11,1.81231826]
[1642084978301,17.38450908,157.16,157.11,1.81231826]
[1642084978504,11.38450908,157.16,157.09,1.81231826]
[1642084978904,17.38450908,157.16,157.09,1.81231826]
[1642084980107,26.93380908,157.16,157.09,1.81231826]
[1642084980605,96.0,157.14,157.05,3.62919169]
[1642084980805,76.315,157.13,157.07,1.81281525]
[1642084981007,82.565,157.13,157.07,1.525e-05]
[1642084981304,9.553,157.1,157.07,1.525e-05]
[1642084981510,8.60939994,157.09,157.07,1.525e-05]
[1642084981706,8.60939994,157.09,157.03,3.62919169]
[1642084981905,8.60939994,157.09,156.98,0.06]
[1642084982105,6.06439994,157.09,157.01,1.27442947]
[1642084982306,2.545,157.17,157.01,10.43442947]
[1642084982506,8.545,157.17,157.03,5.7304]
[1642084982704,2.545,157.17,157.03,5.7304]
[1642084982905,2.545,157.17,157.04,22.53409484]
[1642084983104,11.47857074,157.17,157.04,30.05852431]
[1642084983305,11.47857074,157.17,157.04,28.78409484]
[1642084983505,88.8106,157.18,157.08,5.7286]
[1642084984107,79.6506,157.18,157.08,5.7286]
[1642084984505,79.6506,157.18,157.08,28.90808243]
[1642084984905,6.0,157.18,157.08,28.90808243]
[1642084985108,2.545,157.21,157.09,1.27442947]
[1642084985307,336.17077328,157.59,157.15,5.7257]
[1642084985308,86.2239,157.27,157.15,5.7257]
[1642084985509,86.2239,157.27,157.15,5.9757]
[1642084985510,77.0639,157.27,157.15,5.9757]
[1642084985707,74.5189,157.27,157.15,5.9757]
[1642084986007,17.51907408,157.26,157.15,5.9757]
[1642084986207,27.06157408,157.26,157.15,5.9757]
[1642084986407,27.06157408,157.26,157.15,5.7257]
[1642084986611,27.06157408,157.26,157.15,11.9757]
[1642084987507,27.06157408,157.26,157.15,5.9757]
[1642084987707,27.06157408,157.26,157.14,8.2703]
[1642084987907,2.544,157.25,157.14,2.544]
[1642084988107,9.5443,157.23,157.14,2.544]
[1642084988708,2.544,157.25,157.14,2.544]
[1642084988908,0.25,157.23,157.15,23.12484861]
[1642084989114,17.76907408,157.26,157.15,23.12484861]
[1642084989510,27.31117408,157.26,157.15,6.0]
[1642084989708,27.31117408,157.26,157.15,6.25]
[1642084989909,27.31117408,157.26,157.14,2.544]
[1642084990109,97.92117408,157.26,157.15,5.7257]
[1642084990511,97.67117408,157.26,157.15,5.9757]
[1642084991312,97.67117408,157.26,157.15,5.7257]
[1642084991514,97.67117408,157.26,157.15,5.9757]
[1642084991918,97.92117408,157.26,157.15,5.9757]
[1642084992117,27.06117408,157.26,157.15,5.9757]
[1642084992319,17.51907408,157.26,157.15,13.25012947]
[1642084992517,74.5189,157.27,157.16,2.544]
[1642084992716,74.5189,157.27,157.2,5.7241]
[1642084993123,9.16,157.28,157.15,4.06842947]
[1642084993318,18.0854,157.27,157.15,6.25]
[1642084993518,18.3354,157.27,157.15,6.25]
[1642084993917,94.2199,157.27,157.15,6.25]
[1642084994120,18.12093817,157.26,157.15,6.0]
[1642084994322,9.5424,157.25,157.14,8.544]
[1642084994523,9.7924,157.25,157.14,6.0]
[1642084994719,64.61,157.24,157.13,8.544]
[1642084994920,64.61,157.24,157.12,2.544]
[1642084995219,6.0,157.25,157.12,2.544]
[1642084995418,6.0,157.25,157.12,28.61938904]
[1642084995619,88.73093817,157.26,157.12,28.61938904]
[1642084995820,2.544,157.25,157.12,28.61938904]
[1642084996120,9.5434,157.24,157.14,5.7261]
[1642084996321,64.61,157.23,157.14,5.7261]
[1642084996522,67.154,157.23,157.12,2.544]
[1642084997028,73.154,157.23,157.12,2.794]
[1642084997225,73.404,157.23,157.12,2.794]
[1642084997423,94.17185526,157.23,157.12,8.5209]
[1642084997649,27.01785526,157.23,157.12,8.5209]
[1642084998252,27.01785526,157.23,157.12,14.5209]
[1642084998854,27.01785526,157.23,157.12,8.5209]
[1642084999054,27.01785526,157.23,157.12,14.5209]
[1642084999855,15.7935,157.23,157.12,14.5209]
[1642085000056,6.25,157.23,157.12,15.79210707]
[1642085000456,6.0,157.23,157.13,9.16]
[1642085000657,2.544,157.24,157.18,5.7239]
[1642085000859,2.544,157.24,157.19,22.06848441]
[1642085001062,76.6435,157.32,157.2,19.0749]
[1642085001256,76.6435,157.32,157.21,2.543]
[1642085001461,76.6435,157.32,157.21,2.793]
[1642085001656,76.6435,157.32,157.21,9.78730707]
[1642085001859,76.6435,157.32,157.21,15.78730707]
[1642085002058,76.6435,157.32,157.22,23.25582184]
[1642085002458,76.6435,157.32,157.23,20.34300707]
[1642085002658,17.42736765,157.35,157.23,19.0718]
[1642085002858,17.42736765,157.35,157.27,5.7216]
[1642085003158,23.42736765,157.35,157.25,21.20002891]
[1642085003359,22.92736765,157.35,157.25,21.20002891]
[1642085003559,22.92736765,157.35,157.25,27.45002891]
[1642085003759,81.53736765,157.35,157.25,27.45002891]
[1642085003961,64.61,157.35,157.25,27.45002891]
[1642085004159,74.1464,157.35,157.26,5.722]
[1642085004360,74.1464,157.35,157.21,2.543]
[1642085004563,2.543,157.34,157.21,25.0747]
[1642085004762,2.543,157.34,157.21,19.0747]
[1642085004959,2.793,157.34,157.21,25.0747]
[1642085005158,8.793,157.34,157.21,25.0747]
[1642085005358,17.60978941,157.33,157.21,44.56675535]
[1642085005561,2.543,157.32,157.21,44.56675535]
[1642085005760,35.94058941,157.33,157.24,5.7224]
[1642085006060,23.85978941,157.33,157.24,5.9724]
[1642085006259,2.543,157.32,157.24,5.9724]
[1642085006460,6.0,157.32,157.24,5.7224]
[1642085006659,6.0,157.32,157.24,5.9724]
[1642085007065,15.538,157.32,157.2,2.543]
[1642085007269,2.543,157.31,157.2,2.543]
[1642085007465,17.953,157.31,157.15,11.703]
[1642085008065,20.56382333,157.3,157.16,17.50974876]
[1642085008365,17.8225701,157.27,157.18,5.7247]
[1642085008567,64.61,157.26,157.13,2.544]
[1642085008897,67.154,157.26,157.13,2.544]
[1642085009065,73.404,157.26,157.13,2.544]
[1642085009464,73.404,157.26,157.13,8.544]
[1642085009665,73.404,157.26,157.14,21.07587967]
[1642085010065,9.5422,157.25,157.15,5.726]
[1642085010465,15.7922,157.25,157.15,5.726]
[1642085011066,6.25,157.25,157.15,5.726]
[1642085011265,18.7015,157.27,157.16,2.544]
[1642085011466,18.7015,157.27,157.15,9.54120707]
[1642085011665,18.7015,157.27,157.15,15.54120707]
[1642085011865,18.7015,157.27,157.19,5.7244]
[1642085012066,18.7015,157.27,157.19,5.9744]
[1642085012267,9.16,157.27,157.19,5.9744]
[1642085012468,9.16,157.27,157.2,17.88426199]
[1642085012665,6.0,157.27,157.2,17.88426199]
[1642085012866,78.896,157.29,157.21,5.7237]
[1642085013067,78.896,157.29,157.21,7.24490707]
[1642085013269,78.896,157.29,157.21,13.24490707]
[1642085013469,21.41127624,157.33,157.22,1.27120707]